[Event "Marienbad B1-IM 2024"]
[Site "Marianske Lazne"]
[Date "2024.01.14"]
[Round "2.13"]
[White "Kulkarni Bhakti"]
[Black "Ni, Viktorija"]
[Result "1-0"]
[ECO "A48"]
[WhiteElo "2364"]
[BlackElo "2138"]
[Annotator "RC"]
[PlyCount "147"]
[EventDate "2024.01.10"]
[EventType "tourn"]
[EventCountry "CZE"]
[SourceTitle "playchess.com"]
[Source "ChessBase"]
[SourceQuality "1"]
[TimeControl "40/5400+30:1800+30"]

1. d4 {[%emt 0:00:16]} Nf6 {[%emt 0:03:07]} 2. Nf3 {[%emt 0:00:24]} g6 {[%emt 0:00:20]} 3. Nc3 {[%emt 0:00:47]} d5 {[%emt 0:03:26]} 4. Bf4 {[%emt 0:00:26]} Bg7 {[%emt 0:03:04]} 5. e3 {[%emt 0:00:15]} c5 {[%emt 0:06:51]} 6. Nb5 {[%emt 0:04:37]} Na6 {[%emt 0:01:13]} 7. c3 {[%emt 0:02:19]} Nh5 {[%emt 0:02:06]} 8. Bg5 {[%emt 0:01:04]} h6 {[%emt 0:09:14]} 9. Bh4 {[%emt 0:00:26]} g5 {[%emt 0:12:24]} 10. Ne5 {[%emt 0:14:26]} Nf6 {[%emt 0:03:26]} 11. Bg3 {[%emt 0:00:04]} Ne4 {[%emt 0:01:41]} 12. Bd3 {[%emt 0:03:08]} Nxg3 {[%emt 0:02:50]} 13. hxg3 {[%emt 0:00:34]} Bxe5 {[%emt 0:04:36]} 14. dxe5 {[%emt 0:00:08]} Nc7 {[%emt 0:01:56]} 15. f4 {[%emt 0:16:41]} Bd7 {[%emt 0:06:01]} 16. Na3 {[%emt 0:09:15]} gxf4 {[%emt 0:10:32]} 17. gxf4 {[%emt 0:03:26]} Qc8 {[%emt 0:01:36]} 18. Rh4 {[%emt 0:02:15]} b5 {[%emt 0:07:25]} 19. Qh5 {[%emt 0:16:13]} Qb7 {[%emt 0:01:39]} 20. Kf2 {[%emt 0:02:15]} b4 {[%emt 0:01:00]} 21. cxb4 {[%emt 0:02:11]} c4 {[%emt 0:00:51]} 22. Bf5 {[%emt 0:10:58]} e6 {[%emt 0:00:59]} 23. Bg6 {[%emt 0:01:07]} Rf8 {[%emt 0:02:43]} 24. Bxf7+ {[%emt 0:01:30]} Rxf7 {[%emt 0:01:24]} 25. Rg4 {[%emt 0:00:08]} O-O-O {[%emt 0:01:03]} 26. Qxf7 {[%emt 0:02:07]} Qxb4 {[%emt 0:00:05]} 27. Rb1 {[%emt 0:00:58]} Qd2+ {[%emt 0:01:59]} 28. Kg1 {[%emt 0:00:09]} Be8 {[%emt 0:04:31]} 29. Qf6 {[%emt 0:00:20]} Qxe3+ {[%emt 0:02:39]} 30. Kh2 {[%emt 0:00:16]} h5 {[%emt 0:01:15]} 31. Rg8 {[%emt 0:01:43]} a6 {[%emt 0:02:03]} 32. Qh4 {[%emt 0:02:11]} Qd2 {[%emt 0:01:10]} 33. Kg1 {[%emt 0:02:37]} Qd3 {[%emt 0:00:36]} 34. Qf2 {[%emt 0:00:46]} Qh7 {[%emt 0:00:58]} 35. Rf8 {[%emt 0:00:53]} Qg7 {[%emt 0:00:37]} 36. Rf6 {[%emt 0:00:14]} Bg6 {[%emt 0:00:16]} 37. Rc1 {[%emt 0:00:45]} Be4 {[%emt 0:00:08]} 38. Nc2 {[%emt 0:00:39]} h4 {[%emt 0:00:43]} 39. Ne1 {[%emt 0:00:28]} h3 {[%emt 0:00:24]} 40. Rc3 {[%emt 0:00:24]} hxg2 {[%emt 0:01:01]} 41. Rh3 {[%emt 0:06:41]} Qg4 {[%emt 0:02:15]} 42. Rh4 {[%emt 0:05:04]} Qd1 {[%emt 0:01:24]} 43. Qe3 {[%emt 0:01:44]} Qb1 {[%emt 0:06:02]} 44. Rf7 {[%emt 0:00:39]} d4 {[%emt 0:01:01]} 45. Qe2 {[%emt 0:08:31]} c3 {[%emt 0:14:11]} 46. f5 {[%emt 0:01:57]} Bxf5 {[%emt 0:05:32]} 47. bxc3 {[%emt 0:04:28]} d3 {[%emt 0:01:36]} 48. Qd2 {[%emt 0:01:37]} Qb6+ {[%emt 0:00:33]} 49. Kxg2 {[%emt 0:00:35]} Rg8+ {[%emt 0:00:15]} 50. Kf3 {[%emt 0:00:01]} Qg1 {[%emt 0:01:51]} 51. Ng2 {[%emt 0:04:20]} Qf1+ {[%emt 0:00:50]} 52. Qf2 {[%emt 0:00:02]} Qd1+ {[%emt 0:00:29]} 53. Ke3 {[%emt 0:00:01]} Nd5+ {[%emt 0:00:26]} 54. Kd4 {[%emt 0:00:03]} Qc2 {[%emt 0:00:38]} 55. Qxc2 {[%emt 0:00:20]} dxc2 {[%emt 0:00:05]} 56. Rh1 {[%emt 0:00:05]} Rg4+ {[%emt 0:00:59]} 57. Kc5 {[%emt 0:00:09]} Rg8 {[%emt 0:00:29]} 58. c4 {[%emt 0:02:20]} Nc7 {[%emt 0:00:31]} 59. Ne3 {[%emt 0:00:20]} Be4 {[%emt 0:00:19]} 60. Rc1 {[%emt 0:00:09]} Rg3 {[%emt 0:00:38]} 61. Kd4 {[%emt 0:00:57]} Bg6 {[%emt 0:00:27]} 62. Rg7 {[%emt 0:00:05]} Ne8 {[%emt 0:00:11]} 63. Rg8 {[%emt 0:00:24]} Kd7 {[%emt 0:00:33]} 64. Rxc2 {[%emt 0:00:21]} Rxe3 {[%emt 0:00:52]} 65. Rxg6 {[%emt 0:00:07]} Re1 {[%emt 0:00:02]} 66. Rh2 {[%emt 0:00:20]} Nc7 {[%emt 0:00:55]} 67. Rh7+ {[%emt 0:00:22]} Kc6 {[%emt 0:00:01]} 68. Rgg7 {[%emt 0:00:09]} Rd1+ {[%emt 0:00:27]} 69. Kc3 {[%emt 0:00:05]} Na8 {[%emt 0:00:38]} 70. Re7 {[%emt 0:00:14]} Rc1+ {[%emt 0:00:15]} 71. Kb3 {[%emt 0:00:26]} Rb1+ {[%emt 0:00:52]} 72. Kc2 {[%emt 0:00:13]} Re1 {[%emt 0:00:49]} 73. Rxe6+ {[%emt 0:00:29]} Kc5 {[%emt 0:00:01]} 74. Rxa6 {[%emt 0:00:09]} 1-0

[Event "Marienbad B1-IM 2024"]
[Site "Marianske Lazne"]
[Date "2024.01.14"]
[Round "2.14"]
[White "Zdybel, Przemyslaw"]
[Black "Ochedzan, Tymon"]
[Result "1-0"]
[ECO "B12"]
[WhiteElo "2180"]
[BlackElo "2166"]
[Annotator "TA"]
[PlyCount "107"]
[EventDate "2024.01.10"]
[EventType "tourn"]
[EventCountry "CZE"]
[SourceTitle "playchess.com"]
[Source "ChessBase"]
[SourceQuality "1"]
[TimeControl "40/5400+30:1800+30"]

{[%evp 9,107,0,0,-6,11,4,27,23,27,29,31,30,30,35,36,40,35,22,34,31,81,79,78,33,32,27,28,20,50,39,60,35,54,37,58,50,62,68,110,35,92,66,158,162,697,679,691,699,690,693,687,518,541,543,501,402,447,361,371,369,372,333,323,323,329,331,358,330,377,314,339,0,367,344,510,501,486,494,493,458,476,466,502,490,552,541,654,652,658,656,607,516,739,758,779,770,29978,1383,29979,29980]} 1. e4 {[%emt 0:00:02]} c6 {[%emt 0:00:06]} 2. d4 {[%emt 0:00:12]} d5 {[%emt 0:00:04]} 3. e5 {[%emt 0:00:05]} c5 {[%emt 0:00:13]} 4. dxc5 {[%emt 0:00:08]} e6 {[%emt 0:00:05]} 5. a3 {[%emt 0:00:05]} Bxc5 {[%emt 0:00:19]} 6. b4 {[%emt 0:00:05]} Be7 {[%emt 0:00:42]} 7. Nf3 {[%emt 0:00:39]} Nd7 {[%emt 0:01:43]} 8. c4 {[%emt 0:04:47] White has an edge.} dxc4 {[%emt 0:06:48]} 9. Nc3 {[%emt 0:07:29]} a6 {[%emt 0:18:25]} 10. Bxc4 {[%emt 0:34:00]} Qc7 {[%emt 0:04:09]} 11. Qd4 {[%emt 0:00:08]} b5 {[%emt 0:03:44]} 12. Bd3 {[%emt 0:07:11]} Bb7 {[%emt 0:03:51] [#] ...Bxf3 is the strong threat.} 13. Ne4 {[%emt 0:00:40]} Qb6 {[%emt 0:08:19] aiming for ...Qxd4.} 14. Qb2 {[%emt 0:06:15]} Bd5 {[%emt 0:05:04]} ({Black should play} 14... f5 $1 $14 15. Be3 Qd8 16. Nd6+ Bxd6 17. exd6 Ngf6) 15. O-O $16 {[%emt 0:00:51]} f5 {[%emt 0:03:08]} 16. exf6 {[%emt 0:08:15]} Ngxf6 {[%emt 0:00:41]} 17. Qe2 {[%emt 0:01:30]} O-O {[%emt 0:03:26]} 18. Re1 {[%emt 0:09:05]} Rae8 {[%emt 0:02:15]} 19. Bb2 {[%emt 0:01:09]} (19. Be3 {simplifies} Qb8 20. Bd4 Nxe4 21. Bxe4 Bf6 22. Qd3) 19... Nh5 {[%emt 0:07:16]} 20. g3 {[%emt 0:05:55] Dodges Nf4} (20. Neg5 {feels hotter.} Bxg5 21. Nxg5 h6 22. Nh3) 20... Nhf6 {[%emt 0:02:13]} 21. Nfg5 {[%emt 0:01:47]} Nxe4 {[%emt 0:05:15]} 22. Nxe4 {[%emt 0:00:08]} e5 {[%emt 0:00:50]} 23. Rad1 {[%emt 0:01:53][%cal Od3b5] Strongly threatening Bxb5!} Bb7 {[%emt 0:04:04]} 24. Rd2 {[%emt 0:00:57]} (24. Bb1 $16 Nf6 25. Bxe5 Nxe4 26. Bxe4 (26. Qa2+ Kh8 $16) 26... Bxe4 27. Qa2+ (27. Qxe4 Qxf2+ 28. Kh1 Bf6 $11) 27... Kh8 28. Rxe4) 24... Rd8 {[%emt 0:09:06]} ({Black should try} 24... Qe6 $14) 25. Bb1 $36 {[%emt 0:03:09][%mdl 2048] White has good play. White stays focused until the end.} Qh6 {[%emt 0:01:29]} (25... Kh8 $14) 26. Red1 {[%emt 0:01:00][%cal Be1d1,Bd1d6,Bd6c6][%mdl 32]} Bc6 {[%emt 0:01:51] [#]} (26... Qe6 27. Ba1 Qh3 28. Ba2+ Kh8) 27. Rd6 $1 $18 {[%emt 0:01:22][%mdl 512]} Bxd6 {[%emt 0:01:31]} 28. Rxd6 {[%emt 0:00:05]} Nf6 {[%emt 0:04:57]} 29. Rxc6 {[%emt 0:01:06]} Kh8 {[%emt 0:00:40]} 30. Bc1 {[%emt 0:02:00]} Qh5 {[%emt 0:01:12]} 31. Qxh5 {[%emt 0:00:56]} Nxh5 {[%emt 0:00:03]} 32. Bc2 {[%emt 0:01:37]} ({Worse is} 32. Rxa6 Rd1+ 33. Kg2 Rxc1 $11) 32... Rc8 {[%emt 0:01:04]} 33. Rxc8 {[%emt 0:00:13]} Rxc8 {[%emt 0:00:04]} 34. Nc5 {[%emt 0:00:08]} a5 {[%emt 0:00:24]} 35. Bd3 {[%emt 0:02:19]} axb4 {[%emt 0:00:06]} 36. axb4 {[%emt 0:00:02]} Nf6 {[%emt 0:00:14]} 37. Bd2 {[%emt 0:01:01]} (37. Bxb5 Rb8 $18) 37... Nd5 {[%emt 0:00:35]} 38. Kg2 {[%emt 0:00:41]} ({Don't do} 38. Bxb5 Nxb4 39. Nd7 (39. Bxb4 Rb8 $18) 39... Rc2 $18) 38... Nc7 {[%emt 0:00:47]} 39. Bc3 {[%emt 0:00:30]} Nd5 {[%emt 0:01:16]} 40. Bd2 {[%emt 0:00:08]} ({Weaker is} 40. Bxe5 Nxb4 41. Bf1 (41. Bd6 Rc6 $11) 41... Rxc5 $14) 40... Nc7 $1 {[%emt 0:00:08]} 41. Be4 {[%emt 0:30:48]} Kg8 {[%emt 0:02:39]} (41... Nd5 {was worth a try.} 42. Bxd5 Rd8) 42. Bc3 {[%emt 0:00:00]} Re8 {[%emt 0:00:13]} 43. Bc6 {[%emt 0:00:00]} Re7 {[%emt 0:00:26]} 44. Kf1 {[%emt 0:00:00]} Kf7 {[%emt 0:00:30]} 45. Ke2 {[%emt 0:00:00]} g5 {[%emt 0:00:39]} 46. h3 {[%emt 0:00:00]} h5 {[%emt 0:00:53][%cal Bh7h5,Bh5g4][%mdl 32]} 47. Ke3 {[%emt 0:00:00]} g4 {[%emt 0:00:42]} 48. hxg4 {[%emt 0:00:00]} hxg4 {[%emt 0:00:05]} 49. Ke4 {[%emt 0:00:00]} Kf6 {[%emt 0:00:19]} 50. Bb2 {[%emt 0:00:00]} Kg6 {[%emt 0:00:56]} 51. Bxe5 {[%emt 0:00:00]} Kg5 {[%emt 0:00:42]} 52. Kd4 {[%emt 0:00:00] Threatening mate with Bxc7.} Kf5 {[%emt 0:00:25]} 53. Be4+ {[%emt 0:00:00]} Kg5 {[%emt 0:00:10]} 54. Bxc7 {[%emt 0:00:00] Weighted Error Value: White=0.31/Black=0.47.  Mistake:       	White=1     	Black=5      Inaccurate:     	White=1     	Black=2      OK:         	White=16    	Black=12     Best:        	White=3     	Black=1      Strong:       	---       	Black=1} 1-0

[Event "Marienbad B1-IM 2024"]
[Site "Marianske Lazne"]
[Date "2024.01.14"]
[Round "2.15"]
[White "Ashwath, R.."]
[Black "Rasmussen, Casper"]
[Result "1-0"]
[ECO "D10"]
[WhiteElo "2284"]
[BlackElo "2265"]
[Annotator "ChessBase"]
[PlyCount "65"]
[EventDate "2024.01.10"]
[EventType "tourn"]
[EventCountry "CZE"]
[SourceTitle "playchess.com"]
[Source "ChessBase"]
[SourceQuality "1"]
[TimeControl "40/5400+30:1800+30"]

1. d4 {[%emt 0:06:05]} d5 {[%emt 0:00:08]} 2. c4 {[%emt 0:00:07]} c6 {[%emt 0:00:03]} 3. cxd5 {[%emt 0:00:05]} cxd5 {[%emt 0:00:09]} 4. Bf4 {[%emt 0:00:12]} Nc6 {[%emt 0:00:50]} 5. e3 {[%emt 0:00:27]} Nf6 {[%emt 0:00:30]} 6. Nc3 {[%emt 0:00:26]} Bf5 {[%emt 0:00:51]} 7. Qb3 {[%emt 0:02:35]} Na5 {[%emt 0:00:35]} 8. Qa4+ {[%emt 0:00:10]} Bd7 {[%emt 0:00:21]} 9. Qc2 {[%emt 0:00:06]} e6 {[%emt 0:01:23]} 10. h3 {[%emt 0:01:52]} Rc8 {[%emt 0:02:20]} 11. Nf3 {[%emt 0:00:27]} Bb4 {[%emt 0:06:20]} 12. Bd3 {[%emt 0:02:48]} Nc4 {[%emt 0:11:02]} 13. Bxc4 {[%emt 0:03:43]} Rxc4 {[%emt 0:00:21]} 14. Ne5 {[%emt 0:04:41]} Rc8 {[%emt 0:00:41]} 15. Qb3 {[%emt 0:06:56]} Qa5 {[%emt 0:13:02]} 16. O-O {[%emt 0:04:19]} O-O {[%emt 0:05:14]} 17. Rfc1 {[%emt 0:08:04]} b6 {[%emt 0:13:24]} 18. a4 {[%emt 0:12:06]} h6 {[%emt 0:17:02]} 19. Nxd7 {[%emt 0:05:13]} Nxd7 {[%emt 0:00:04]} 20. Nb5 {[%emt 0:00:20]} Be7 {[%emt 0:03:31]} 21. Rc2 {[%emt 0:08:01]} Nf6 {[%emt 0:02:50]} 22. f3 {[%emt 0:05:48]} Rxc2 {[%emt 0:03:19]} 23. Qxc2 {[%emt 0:00:02]} Re8 {[%emt 0:03:42]} 24. Bg3 {[%emt 0:05:34]} a6 {[%emt 0:00:46]} 25. Na7 {[%emt 0:08:10]} b5 {[%emt 0:00:26]} 26. Bc7 {[%emt 0:03:53]} Qb4 {[%emt 0:00:19]} 27. axb5 {[%emt 0:00:50]} axb5 {[%emt 0:00:02]} 28. b3 {[%emt 0:00:26]} Ra8 {[%emt 0:01:47]} 29. Qc6 {[%emt 0:01:33]} Rxa7 {[%emt 0:01:44]} 30. Rxa7 {[%emt 0:00:03]} Qe1+ {[%emt 0:00:11]} 31. Kh2 {[%emt 0:00:04]} Qxe3 {[%emt 0:01:33]} 32. Be5 {[%emt 0:01:06]} Bf8 {[%emt 0:00:19]} 33. Qc7 {[%emt 0:00:59]} 1-0

[Event "Marienbad B1-IM 2024"]
[Site "Marianske Lazne"]
[Date "2024.01.15"]
[Round "3.12"]
[White "Ochedzan, Tymon"]
[Black "Ashwath, R.."]
[Result "1/2-1/2"]
[ECO "C60"]
[WhiteElo "2166"]
[BlackElo "2284"]
[Annotator "RC"]
[PlyCount "213"]
[EventDate "2024.01.10"]
[EventType "tourn"]
[EventCountry "CZE"]
[SourceTitle "playchess.com"]
[Source "ChessBase"]
[SourceQuality "1"]
[TimeControl "40/5400+30:1800+30"]

1. e4 {[%emt 0:00:02]} e5 {[%emt 0:00:58]} 2. Nf3 {[%emt 0:00:06]} Nc6 {[%emt 0:00:07]} 3. Bb5 {[%emt 0:00:06]} Nge7 {[%emt 0:00:17]} 4. Nc3 {[%emt 0:07:18]} Ng6 {[%emt 0:01:49]} 5. O-O {[%emt 0:02:59]} Bc5 {[%emt 0:02:13]} 6. Ba4 {[%emt 0:09:15]} O-O {[%emt 0:03:07]} 7. Nd5 {[%emt 0:06:22]} d6 {[%emt 0:05:35]} 8. c3 {[%emt 0:03:59]} a6 {[%emt 0:33:15]} 9. d4 {[%emt 0:01:37]} Ba7 {[%emt 0:00:26]} 10. h3 {[%emt 0:01:31]} Nce7 {[%emt 0:03:10]} 11. Bg5 {[%emt 0:09:40]} f6 {[%emt 0:05:18]} 12. Bb3 {[%emt 0:00:50]} Nxd5 {[%emt 0:01:53]} 13. Bxd5+ {[%emt 0:00:27]} Kh8 {[%emt 0:00:02]} 14. Be3 {[%emt 0:00:54]} c6 {[%emt 0:04:24]} 15. Bb3 {[%emt 0:02:21]} d5 {[%emt 0:02:45]} 16. dxe5 {[%emt 0:15:16]} Bxe3 {[%emt 0:05:30]} 17. fxe3 {[%emt 0:00:37]} dxe4 {[%emt 0:01:14]} 18. Qxd8 {[%emt 0:03:08]} Rxd8 {[%emt 0:00:03]} 19. Rad1 {[%emt 0:00:54]} Bxh3 {[%emt 0:07:55]} 20. gxh3 {[%emt 0:00:41]} exf3 {[%emt 0:01:06]} 21. e6 {[%emt 0:01:51]} Ne7 {[%emt 0:03:47]} 22. Kf2 {[%emt 0:01:44]} g6 {[%emt 0:01:56]} 23. Kxf3 {[%emt 0:01:20]} Kg7 {[%emt 0:00:08]} 24. e4 {[%emt 0:00:34]} Kf8 {[%emt 0:05:14]} 25. Ke3 {[%emt 0:02:15]} Ng8 {[%emt 0:00:42]} 26. e5 {[%emt 0:02:07]} Ke7 {[%emt 0:01:07]} 27. Kf4 {[%emt 0:04:30]} Rxd1 {[%emt 0:03:51]} 28. Rxd1 {[%emt 0:01:37]} fxe5+ {[%emt 0:02:24]} 29. Kxe5 {[%emt 0:00:12]} Nf6 {[%emt 0:02:13]} 30. a4 {[%emt 0:02:23]} Rf8 {[%emt 0:01:22]} 31. a5 {[%emt 0:04:33]} g5 {[%emt 0:01:29]} 32. Rd4 {[%emt 0:01:07]} g4 {[%emt 0:00:37]} 33. hxg4 {[%emt 0:00:35]} Rg8 {[%emt 0:00:02]} 34. Rd2 {[%emt 0:08:27]} Rg5+ {[%emt 0:00:52]} 35. Kf4 {[%emt 0:00:12]} Rxg4+ {[%emt 0:00:20]} 36. Kf5 {[%emt 0:00:13]} h6 {[%emt 0:00:16]} 37. Rh2 {[%emt 0:00:59]} Rg5+ {[%emt 0:00:08]} 38. Kf4 {[%emt 0:00:05]} Nh5+ {[%emt 0:01:03]} 39. Kf3 {[%emt 0:02:02]} Rxa5 {[%emt 0:00:03]} 40. Rg2 {[%emt 0:00:34]} Rg5 {[%emt 0:01:16]} 41. Rxg5 {[%emt 0:31:54]} hxg5 {[%emt 0:30:03]} 42. Kg4 {[%emt 0:00:16]} Nf4 {[%emt 0:00:00]} 43. Kxg5 {[%emt 0:00:00]} Nd3 {[%emt 0:00:00]} 44. Kf5 {[%emt 0:00:00]} a5 {[%emt 0:00:00]} 45. c4 {[%emt 0:00:00]} Nxb2 {[%emt 0:00:00]} 46. Ke4 {[%emt 0:00:00]} a4 {[%emt 0:00:00]} 47. Ba2 {[%emt 0:00:00]} Nd1 {[%emt 0:00:00]} 48. Kd3 {[%emt 0:00:00]} Kxe6 {[%emt 0:00:00]} 49. Kc2 {[%emt 0:00:00]} Ne3+ {[%emt 0:00:00]} 50. Kd2 {[%emt 0:00:00]} Nf5 {[%emt 0:00:00]} 51. Kc3 {[%emt 0:00:00]} c5 {[%emt 0:00:00]} 52. Kb2 {[%emt 0:00:00]} Ne3 {[%emt 0:01:33]} 53. Ka3 {[%emt 0:00:00]} Nd1 {[%emt 0:00:27]} 54. Bb1 {[%emt 0:00:00]} Ke5 {[%emt 0:00:26]} 55. Bh7 {[%emt 0:00:00]} Kd4 {[%emt 0:01:30]} 56. Kxa4 {[%emt 0:00:00]} Nb2+ {[%emt 0:00:21]} 57. Kb5 {[%emt 0:00:00]} Nxc4 {[%emt 0:00:03]} 58. Bg8 {[%emt 0:00:00]} Nd6+ {[%emt 0:00:32]} 59. Kb6 {[%emt 0:00:00]} c4 {[%emt 0:00:09]} 60. Bh7 {[%emt 0:00:00]} Ne4 {[%emt 0:01:06]} 61. Bg8 {[%emt 0:00:00]} Nd6 {[%emt 0:01:13]} 62. Bh7 {[%emt 0:00:00]} Ne4 {[%emt 0:00:31]} 63. Bg8 {[%emt 0:00:00]} Nc5 {[%emt 0:02:52]} 64. Bh7 {[%emt 0:00:00]} c3 {[%emt 0:00:43]} 65. Bb1 {[%emt 0:00:13]} Kc4 {[%emt 0:00:20]} 66. Bc2 {[%emt 0:00:53]} Kb4 {[%emt 0:00:33]} 67. Bh7 {[%emt 0:00:33]} Kc4 {[%emt 0:00:42]} 68. Bc2 {[%emt 0:00:08]} Kd5 {[%emt 0:00:04]} 69. Bb1 {[%emt 0:00:44]} Kd4 {[%emt 0:00:29]} 70. Bc2 {[%emt 0:00:33]} Nd3 {[%emt 0:01:11]} 71. Kxb7 {[%emt 0:00:44]} Ke3 {[%emt 0:00:15]} 72. Kb6 {[%emt 0:02:27]} Kd2 {[%emt 0:00:02]} 73. Ba4 {[%emt 0:00:59]} Kc1 {[%emt 0:00:32]} 74. Kb5 {[%emt 0:01:00]} Ne5 {[%emt 0:01:11]} 75. Kc5 {[%emt 0:00:49]} Kb2 {[%emt 0:00:05]} 76. Bd1 {[%emt 0:00:47]} Nd3+ {[%emt 0:00:56]} 77. Kd4 {[%emt 0:00:24]} Nb4 {[%emt 0:00:34]} 78. Kc4 {[%emt 0:00:36]} Nc6 {[%emt 0:00:18]} 79. Kd3 {[%emt 0:00:34]} Nb8 {[%emt 0:00:44]} 80. Kc4 {[%emt 0:00:16]} Nd7 {[%emt 0:00:04]} 81. Kd4 {[%emt 0:00:19]} Nf6 {[%emt 0:00:11]} 82. Ba4 {[%emt 0:00:30]} Ng4 {[%emt 0:00:36]} 83. Bd1 {[%emt 0:00:37]} Nh6 {[%emt 0:00:40]} 84. Kd3 {[%emt 0:00:32]} Nf5 {[%emt 0:00:10]} 85. Ba4 {[%emt 0:00:17]} Nd6 {[%emt 0:00:08]} 86. Bd1 {[%emt 0:00:36]} Nb7 {[%emt 0:00:06]} 87. Kd4 {[%emt 0:00:35]} Na5 {[%emt 0:00:12]} 88. Kd3 {[%emt 0:00:33]} Nb3 {[%emt 0:01:09]} 89. Kc4 {[%emt 0:00:23]} Nd2+ {[%emt 0:00:32]} 90. Kd3 {[%emt 0:00:39]} Nf3 {[%emt 0:01:34]} 91. Ke3 {[%emt 0:00:32]} Nd2 {[%emt 0:00:36]} 92. Kd3 {[%emt 0:00:57]} Nb1 {[%emt 0:00:15]} 93. Bc2 {[%emt 0:00:47]} Na3 {[%emt 0:00:20]} 94. Bd1 {[%emt 0:00:20]} Nb5 {[%emt 0:00:08]} 95. Ba4 {[%emt 0:00:50]} Nd6 {[%emt 0:01:00]} 96. Bd1 {[%emt 0:00:22]} Nb7 {[%emt 0:00:11]} 97. Kd4 {[%emt 0:00:18]} Na5 {[%emt 0:00:05]} 98. Kd3 {[%emt 0:00:09]} Nc6 {[%emt 0:00:24]} 99. Kc4 {[%emt 0:00:40]} Ne7 {[%emt 0:00:14]} 100. Kd4 {[%emt 0:00:47]} Nf5+ {[%emt 0:00:15]} 101. Kd3 {[%emt 0:00:12]} Nd6 {[%emt 0:00:05]} 102. Kd4 {[%emt 0:01:05]} Nb5+ {[%emt 0:00:07]} 103. Kd3 {[%emt 0:00:24]} Kc1 {[%emt 0:00:39]} 104. Ba4 {[%emt 0:00:26]} Kb1 {[%emt 0:00:05]} 105. Kc4 {[%emt 0:00:21]} Kb2 {[%emt 0:01:07]} 106. Kxb5 {[%emt 0:00:08]} c2 {[%emt 0:00:02]} 107. Bxc2 {[%emt 0:00:05]} 1/2-1/2

[Event "Marienbad B1-IM 2024"]
[Site "Marianske Lazne"]
[Date "2024.01.15"]
[Round "3.13"]
[White "Ni, Viktorija"]
[Black "Zdybel, Przemyslaw"]
[Result "0-1"]
[ECO "A40"]
[WhiteElo "2138"]
[BlackElo "2180"]
[Annotator "NA RC"]
[PlyCount "112"]
[EventDate "2024.01.10"]
[EventType "tourn"]
[EventCountry "CZE"]
[SourceTitle "playchess.com"]
[Source "ChessBase"]
[SourceQuality "1"]
[TimeControl "40/5400+30:1800+30"]

1. d4 {[%emt 0:00:05]} e6 {[%emt 0:00:20]} 2. g3 {[%emt 0:01:51]} f5 {[%emt 0:03:19]} 3. Bg2 {[%emt 0:11:42]} Nf6 {[%emt 0:00:36]} 4. b3 {[%emt 0:04:25]} d5 {[%emt 0:19:01]} 5. Nf3 {[%emt 0:03:10]} Bd6 {[%emt 0:00:44]} 6. c4 {[%emt 0:07:55]} c6 {[%emt 0:02:07]} 7. O-O {[%emt 0:01:46]} Qe7 {[%emt 0:01:35]} 8. Bf4 {[%emt 0:02:38]} Bxf4 {[%emt 0:00:52]} 9. gxf4 {[%emt 0:00:05]} O-O {[%emt 0:00:03]} 10. Ne5 {[%emt 0:05:00]} Nbd7 {[%emt 0:00:33]} 11. Nd2 {[%emt 0:04:56]} Nxe5 {[%emt 0:03:53]} 12. dxe5 {[%emt 0:17:18]} Ne4 {[%emt 0:01:07]} 13. Rc1 {[%emt 0:07:42]} Bd7 {[%emt 0:09:04]} 14. Nxe4 {[%emt 0:04:52]} fxe4 {[%emt 0:01:24]} 15. e3 {[%emt 0:01:24]} Be8 {[%emt 0:06:20]} 16. f3 {[%emt 0:00:55]} exf3 {[%emt 0:14:12]} 17. Qxf3 {[%emt 0:02:20]} Rd8 {[%emt 0:04:01]} 18. cxd5 {[%emt 0:01:10]} cxd5 {[%emt 0:00:52]} 19. Qf2 {[%emt 0:06:39]} Kh8 {[%emt 0:02:18]} 20. Qd2 {[%emt 0:04:39]} Bb5 {[%emt 0:01:49]} 21. Rf2 {[%emt 0:00:27]} Rc8 {[%emt 0:04:29]} 22. a4 {[%emt 0:03:00]} Bd7 {[%emt 0:02:21]} 23. Rxc8 {[%emt 0:02:17]} Rxc8 {[%emt 0:00:08]} 24. f5 {[%emt 0:00:10]} exf5 {[%emt 0:00:56]} 25. Qxd5 {[%emt 0:02:24]} Bc6 {[%emt 0:07:55]} 26. Qd6 {[%emt 0:00:35]} Qg5 {[%emt 0:00:01]} 27. Qd2 {[%emt 0:02:22]} Be4 {[%emt 0:06:16]} 28. Kh1 {[%emt 0:01:04]} Qg4 {[%emt 0:00:26]} 29. e6 {[%emt 0:01:07]} Bxg2+ {[%emt 0:02:28]} 30. Rxg2 {[%emt 0:00:02]} Qe4 {[%emt 0:00:11]} 31. Qb2 {[%emt 0:01:07]} Rg8 {[%emt 0:00:26]} 32. Qd4 {[%emt 0:00:35]} Qxe6 {[%emt 0:00:26]} 33. b4 {[%emt 0:00:31]} a6 {[%emt 0:03:13]} 34. b5 {[%emt 0:00:41]} axb5 {[%emt 0:00:59]} 35. axb5 {[%emt 0:00:02]} Qe7 {[%emt 0:00:13]} 36. h3 {[%emt 0:01:00]} Rc8 {[%emt 0:00:48]} 37. b6 {[%emt 0:00:27]} h6 {[%emt 0:01:30]} 38. Kh2 {[%emt 0:00:35]} Re8 {[%emt 0:01:45]} 39. Rg6 {[%emt 0:00:31]} Kh7 {[%emt 0:00:41]} 40. Rg3 {[%emt 0:00:26]} Rc8 {[%emt 0:00:31]} 41. Rg2 {[%emt 0:03:39]} Rc6 {[%emt 0:06:49]} 42. Rd2 {[%emt 0:03:14]} Qf6 {[%emt 0:14:18]} 43. Qxf6 {[%emt 0:06:13]} Rxf6 {[%emt 0:00:03]} 44. Rb2 {[%emt 0:00:05]} g5 {[%emt 0:01:27]} 45. h4 {[%emt 0:05:41]} Kg6 {[%emt 0:02:00]} 46. hxg5 {[%emt 0:01:34]} hxg5 {[%emt 0:00:32]} 47. Kg3 {[%emt 0:00:41]} Re6 {[%emt 0:00:20]} 48. Kf3 {[%emt 0:00:22]} Rc6 {[%emt 0:04:23]} 49. Rb3 {[%emt 0:00:44]} Re6 {[%emt 0:01:00]} 50. Rb2 {[%emt 0:01:36]} g4+ {[%emt 0:01:24]} 51. Kf2 {[%emt 0:00:22]} Kg5 {[%emt 0:00:48]} 52. Rb5 {[%emt 0:01:22]} Re4 {[%emt 0:00:53]} 53. Ke2 {[%emt 0:03:32]} Ra4 {[%emt 0:01:02]} 54. Kf2 {[%emt 0:00:56]} Ra2+ {[%emt 0:00:47]} 55. Kg3 {[%emt 0:00:17]} Re2 {[%emt 0:00:27]} 56. Re5 {[%emt 0:03:45]} Rxe3+ {[%emt 0:00:05]} 0-1